fUSD/lending_fUSD_20250906
["ID","MTS","AMOUNT","RATE_DAILY","PERIOD"]
[383923587,1757172715221,-400.0,0.00037259,8]
[383923588,1757172715231,-413.37,0.00037259,8]
[383923589,1757172715240,-455.35,0.00037259,8]
[383923590,1757172715250,-400.0,0.00037259,8]
[383923591,1757172715262,-400.0,0.00037259,8]
[383923592,1757172715271,-400.0,0.00037259,8]
[383923593,1757172715281,-476.73058229,0.00037259,8]
[383923594,1757172715290,-400.0,0.00037259,8]
[383923595,1757172715305,-400.0,0.00037259,8]
[383923596,1757172715315,-400.0,0.00037259,8]
[383923597,1757172715325,-400.0,0.00037259,8]
[383923598,1757172715336,-466.07,0.00037259,8]
[383923599,1757172715345,-400.0,0.00037259,8]
[383923600,1757172715355,-400.0,0.00037259,8]
[383923601,1757172715364,-400.0,0.00037259,8]
[383923602,1757172715374,-400.0,0.00037259,8]
[383923603,1757172715383,-400.0,0.00037259,8]
[383923604,1757172715393,-400.0,0.00037259,8]
[383923605,1757172715403,-414.18,0.00037259,8]
[383923606,1757172715413,-400.0,0.00037259,8]
[383923607,1757172715422,-400.0,0.00037259,8]
[383923608,1757172715432,-459.72,0.00037259,8]
[383923609,1757172715441,-400.0,0.00037259,8]
[383923610,1757172715451,-400.0,0.00037259,8]
[383923611,1757172715460,-400.0,0.00037259,8]
[383923612,1757172715470,-400.0,0.00037259,8]
[383923613,1757172715480,-400.0,0.00037259,8]
[383923614,1757172715490,-400.0,0.00037259,8]
[383923615,1757172715499,-400.0,0.00037259,8]
[383923616,1757172715509,-400.0,0.00037259,8]
[383923617,1757172715518,-400.0,0.00037259,8]
[383923618,1757172715527,-400.0,0.00037259,8]
[383923619,1757172715537,-400.0,0.00037259,8]
[383923620,1757172715547,-400.0,0.00037259,8]
[383923621,1757172715557,-400.0,0.00037259,8]
[383923622,1757172715566,-400.0,0.00037259,8]
[383923623,1757172715576,-400.0,0.00037259,8]
[383923624,1757172715586,-400.0,0.00037259,8]
[383923625,1757172715595,-400.0,0.00037259,8]
[383923626,1757172715605,-400.0,0.00037259,8]
[383923627,1757172715615,-400.0,0.00037259,8]
[383923628,1757172715624,-456.30664415,0.00037259,8]
[383923629,1757172715633,-476.3,0.00037259,8]
[383923630,1757172715642,-400.0,0.00037259,8]
[383923631,1757172715652,-400.0,0.00037259,8]
[383923632,1757172715661,-400.0,0.00037259,8]
[383923633,1757172715671,-400.0,0.00037259,8]
[383923634,1757172715681,-400.0,0.00037259,8]
[383923635,1757172715691,-181.77177201,0.00037259,8]
[383923636,1757172715700,-400.0,0.00037259,8]
[383923637,1757172715709,-400.0,0.00037259,8]
[383923638,1757172715719,-400.0,0.00037259,8]
[383923639,1757172715728,-400.0,0.00037259,8]
[383923640,1757172715737,-500.0,0.00037259,8]
[383923641,1757172715746,-500.0,0.00037259,8]
[383923642,1757172715756,-400.0,0.00037259,8]
[383923643,1757172715765,-400.0,0.00037259,8]
[383923644,1757172715774,-400.0,0.00037259,8]
[383923645,1757172715783,-639.08,0.00037259,8]
[383923646,1757172715793,-400.0,0.00037259,8]
[383923647,1757172715803,-400.0,0.00037259,8]
[383923648,1757172715812,-400.0,0.00037259,8]
[383923649,1757172715822,-287.37767497,0.00037259,8]
[383923650,1757172715832,-400.0,0.00037259,8]
[383923651,1757172715841,-400.0,0.00037259,8]
[383923652,1757172715851,-400.0,0.00037259,8]
[383923653,1757172715861,-400.0,0.00037259,8]
[383923654,1757172715870,-400.0,0.00037259,8]
[383923655,1757172715880,-400.0,0.00037259,8]
[383923656,1757172715889,-400.0,0.00037259,8]
[383923657,1757172715899,-400.0,0.00037259,8]
[383923658,1757172715908,-400.0,0.00037259,8]
[383923659,1757172715917,-500.0,0.00037259,2]
[383923660,1757172715927,-400.0,0.00037259,8]
[383923661,1757172715936,-400.0,0.00037259,8]
[383923662,1757172715946,-400.0,0.00037259,8]
[383923663,1757172715955,-400.0,0.00037259,8]
[383923664,1757172715964,-642.97,0.00037259,8]
[383923665,1757172715974,-400.0,0.00037259,8]
[383923666,1757172715983,-656.31,0.00037259,8]
[383923667,1757172715993,-400.0,0.00037259,8]
[383923668,1757172716003,-400.0,0.00037259,8]
[383923669,1757172716012,-426.3795185,0.00037259,8]
[383923670,1757172716022,-400.0,0.00037259,8]
[383923671,1757172716031,-400.0,0.00037259,8]
[383923672,1757172716040,-400.0,0.00037259,8]
[383923673,1757172716050,-400.0,0.00037259,8]
[383923674,1757172716059,-199.0,0.00037259,11]
[383923675,1757172716069,-402.75384534,0.00037259,8]
[383923676,1757172716079,-464.88,0.00037259,8]
[383923677,1757172716088,-400.0,0.00037259,8]
[383923678,1757172716097,-445.43,0.00037259,8]
[383923679,1757172716107,-400.0,0.00037259,8]
[383923680,1757172716117,-400.0,0.00037259,8]
[383923681,1757172716126,-400.0,0.00037259,8]
[383923682,1757172716136,-400.0,0.00037259,8]
[383923683,1757172716145,-400.0,0.00037259,8]
[383923684,1757172716155,-400.0,0.00037259,8]
[383923685,1757172716164,-406.69,0.00037259,8]
[383923686,1757172716173,-400.0,0.00037259,8]
[383923687,1757172716182,-400.0,0.00037259,8]
[383923688,1757172716191,-400.0,0.00037259,8]
[383923689,1757172716201,-503.35566369,0.00037259,8]
[383923690,1757172716210,-400.0,0.00037259,8]
[383923691,1757172716219,-400.0,0.00037259,8]
[383923692,1757172716230,-400.0,0.00037259,8]
[383923693,1757172716239,-400.0,0.00037259,8]
[383923694,1757172716249,-433.34,0.00037259,8]
[383923695,1757172716261,-400.0,0.00037259,8]
[383923696,1757172716272,-400.0,0.00037259,8]
[383923697,1757172716281,-400.0,0.00037259,8]
[383923698,1757172716291,-400.0,0.00037259,8]
[383923699,1757172716300,-412.0,0.00037259,8]
[383923700,1757172716310,-400.0,0.00037259,8]
[383923701,1757172716319,-400.0,0.00037259,8]
[383923702,1757172716329,-951.07,0.00037259,8]
[383923703,1757172716338,-400.0,0.00037259,8]
[383923704,1757172716348,-400.0,0.00037259,8]
[383923705,1757172716358,-400.0,0.00037259,8]
[383923706,1757172716367,-400.0,0.00037259,8]
[383923707,1757172716378,-400.0,0.00037259,8]
[383923708,1757172716387,-400.0,0.00037259,8]
[383923709,1757172716397,-400.0,0.00037259,8]
[383923710,1757172716406,-400.0,0.00037259,8]
[383923711,1757172716416,-624.31,0.00037259,8]
[383923712,1757172716425,-802.45,0.00037259,8]
[383923713,1757172716435,-400.0,0.00037259,8]
[383923714,1757172716445,-400.0,0.00037259,8]
[383923715,1757172716457,-411.88165929,0.00037259,8]
[383923716,1757172716467,-400.0,0.00037259,8]
[383923717,1757172716477,-400.0,0.00037259,8]
[383923718,1757172716487,-400.0,0.00037259,8]
[383923719,1757172716496,-400.0,0.00037259,8]
[383923720,1757172716506,-400.0,0.00037259,8]
[383923721,1757172716515,-504.86,0.00037259,8]
[383923722,1757172716525,-766.84,0.00037259,8]
[383923723,1757172716535,-412.7,0.00037259,8]
[383923724,1757172716545,-424.59,0.00037259,7]
[383923725,1757172716555,-400.0,0.00037259,8]
[383923726,1757172716565,-400.0,0.00037259,8]
[383923727,1757172716574,-414.8710762,0.00037259,8]
[383923728,1757172716583,-400.0,0.00037259,8]
[383923729,1757172716593,-400.0,0.00037259,8]
[383923730,1757172716603,-468.3,0.00037259,8]
[383923731,1757172716612,-400.0,0.00037259,8]
[383923732,1757172716622,-400.0,0.00037259,8]
[383923733,1757172716633,-1774.6,0.00037259,8]
[383923734,1757172716643,-489.02,0.00037259,8]
[383923735,1757172716652,-400.0,0.00037259,8]
[383923736,1757172716662,-175.72126501,0.00037259,120]
[383923737,1757172716672,-400.0,0.00037259,8]
[383923738,1757172716681,-400.0,0.00037259,8]
[383923739,1757172716691,-619.29,0.00037259,8]
[383923740,1757172716701,-478.37,0.00037259,8]
[383923741,1757172716710,-400.0,0.00037259,8]
[383923742,1757172716720,-400.0,0.00037259,8]
[383923743,1757172716729,-426.98,0.00037259,8]
[383923744,1757172716739,-400.0,0.00037259,8]
[383923745,1757172716749,-223.73871744,0.00037259,8]
[383923746,1757172716758,-400.0,0.00037259,8]
[383923747,1757172716768,-556.5,0.00037259,8]
[383923748,1757172716777,-5845.89,0.00037259,8]
[383923749,1757172716786,-400.0,0.00037259,8]
[383923750,1757172716796,-400.0,0.00037259,8]
[383923751,1757172716806,-1615.84,0.00037259,8]
[383923752,1757172716816,-400.0,0.00037259,8]
[383923753,1757172716826,-400.0,0.00037259,8]
[383923754,1757172716836,-400.0,0.00037259,8]
[383923755,1757172716846,-1654.33,0.00037259,8]
[383923756,1757172716855,-634.1,0.00037259,8]
[383923757,1757172716865,-400.0,0.00037259,8]
[383923758,1757172716875,-400.0,0.00037259,8]
[383923759,1757172716885,-400.0,0.00037259,8]
[383923760,1757172716895,-400.0,0.00037259,8]
[383923761,1757172716907,-3118.41,0.00037259,8]
[383923762,1757172716918,-311.58822198,0.00037259,8]
[383923763,1757172716928,-999.44,0.00037259,8]
[383923764,1757172716937,-955.89,0.00037259,8]
[383923765,1757172716947,-794.28,0.00037259,8]
[383923766,1757172716957,-400.0,0.00037259,8]
[383923767,1757172716966,-895.75,0.00037259,8]
[383923768,1757172716976,-1108.69,0.00037259,8]
[383923769,1757172716986,-1000.18,0.00037259,8]
[383923770,1757172716996,-400.0,0.00037259,8]
[383923771,1757172717005,-699.09,0.00037259,8]
[383923772,1757172717015,-400.0,0.00037259,8]
[383923773,1757172717025,-646.87,0.00037259,8]
[383923774,1757172717035,-646.87,0.00037259,8]
[383923775,1757172717045,-646.87,0.00037259,8]
[383923776,1757172717055,-646.87,0.00037259,8]
[383923777,1757172717064,-647.10489309,0.00037259,8]
[383923778,1757172717074,-400.0,0.00037259,8]
[383923779,1757172717084,-400.0,0.00037259,8]
[383923780,1757172717093,-422.50911174,0.00037259,8]
[383923781,1757172717103,-400.0,0.00037259,8]
[383923782,1757172717112,-656.84,0.00037259,8]
[383923783,1757172717121,-400.0,0.00037259,8]
[383923784,1757172717131,-400.0,0.00037259,8]
[383923785,1757172717140,-400.0,0.00037259,8]
[383923786,1757172717150,-400.0,0.00037259,8]
[383923787,1757172717160,-2132.96,0.00037259,8]
[383923788,1757172717170,-182.16297746,0.00037259,8]
[383923789,1757172717182,-400.0,0.00037259,8]
[383923790,1757172717191,-1154.3,0.00037259,8]
[383923791,1757172717201,-400.0,0.00037259,8]
[383923792,1757172717210,-1000.0,0.00037259,8]
[383923793,1757172717220,-440.44,0.00037259,8]
[383923794,1757172717230,-329.87664958,0.00037259,8]
[383923795,1757172717241,-2561.85,0.00037259,8]
[383923796,1757172717250,-400.0,0.00037259,8]
[383923797,1757172717264,-400.0,0.00037259,8]
[383923798,1757172717274,-400.0,0.00037259,8]
[383923799,1757172717283,-264.68447032,0.00037259,8]
[383923800,1757172717293,-2611.17,0.00037259,8]
[383923801,1757172717304,-154.69311353,0.00037259,2]
[383923802,1757172717314,-400.0,0.00037259,8]
[383923803,1757172717323,-400.0,0.00037259,8]
[383923804,1757172717333,-2841.49,0.00037259,8]
[383923805,1757172717345,-400.0,0.00037259,8]
[383923806,1757172717355,-400.0,0.0003726,8]
[383923807,1757172717364,-400.0,0.0003726,8]
[383923808,1757172717373,-410.93,0.0003726,8]
[383923809,1757172717383,-400.0,0.0003726,8]
[383923810,1757172717392,-456.06240489,0.0003726,8]
[383923811,1757172717401,-400.0,0.0003726,8]
[383923812,1757172717411,-400.0,0.0003726,8]
[383923813,1757172717420,-400.0,0.0003726,8]
[383923814,1757172717430,-407.16001558,0.0003726,8]
[383923815,1757172717440,-400.0,0.0003726,8]
[383923816,1757172717450,-400.0,0.0003726,8]
[383923817,1757172717460,-400.0,0.0003726,8]
[383923818,1757172717470,-400.0,0.0003726,8]
[383923819,1757172717479,-400.0,0.0003726,8]
[383923820,1757172717488,-350.57396391,0.0003726,8]
[383923821,1757172717498,-400.0,0.0003726,8]
[383923822,1757172717507,-400.0,0.0003726,8]
[383923823,1757172717517,-400.0,0.0003726,8]
[383923824,1757172717526,-400.0,0.0003726,8]
[383923825,1757172717535,-512.09,0.0003726,8]
[383923826,1757172717544,-400.0,0.0003726,8]
[383923827,1757172717554,-400.0,0.0003726,8]
[383923828,1757172717563,-400.0,0.0003726,8]
[383923829,1757172717572,-400.0,0.0003726,8]
[383923830,1757172717582,-400.0,0.0003726,8]
[383923831,1757172717591,-400.0,0.0003726,8]
[383923832,1757172717601,-400.0,0.0003726,8]
[383923833,1757172717611,-400.0,0.0003726,8]
[383923834,1757172717620,-400.0,0.0003726,8]
[383923835,1757172717629,-520.21,0.0003726,8]
[383923836,1757172717639,-400.0,0.0003726,8]
[383923837,1757172717648,-400.0,0.0003726,8]
[383923838,1757172717658,-400.0,0.0003726,8]
[383923839,1757172717888,-427.38909106,0.0003726,8]
[383923840,1757172717898,-196.80232961,0.0003726,8]
[383923841,1757172717909,-400.0,0.0003726,8]
[383923842,1757172717919,-400.0,0.0003726,8]
[383923843,1757172717928,-400.0,0.0003726,8]
[383923844,1757172717938,-400.0,0.0003726,8]
[383923845,1757172717947,-400.0,0.0003726,8]
[383923846,1757172717956,-400.0,0.0003726,8]
[383923847,1757172717966,-400.0,0.0003726,8]
[383923848,1757172717975,-400.0,0.0003726,8]
[383923849,1757172717984,-400.0,0.0003726,8]
[383923850,1757172717994,-400.0,0.0003726,8]
[383923851,1757172718004,-400.0,0.0003726,8]
[383923852,1757172718013,-400.0,0.0003726,8]
[383923853,1757172718022,-710.35,0.0003726,120]
[383923854,1757172718031,-400.0,0.0003726,8]
[383923855,1757172718042,-400.0,0.0003726,8]
[383923856,1757172718051,-400.0,0.0003726,8]
[383923857,1757172718062,-400.0,0.0003726,8]
[383923858,1757172718072,-400.0,0.0003726,8]
[383923859,1757172718081,-400.0,0.0003726,8]
[383923860,1757172718089,-805.82,0.0003726,8]
[383923861,1757172718098,-400.0,0.0003726,8]
[383923862,1757172718106,-400.0,0.0003726,8]
[383923863,1757172718115,-400.0,0.0003726,8]
[383923864,1757172718124,-400.0,0.0003726,8]
[383923865,1757172718132,-400.0,0.0003726,8]
[383923866,1757172718141,-400.0,0.0003726,8]
[383923867,1757172718150,-400.0,0.0003726,8]
[383923868,1757172718159,-400.0,0.0003726,8]
[383923869,1757172718167,-400.0,0.0003726,8]
[383923870,1757172718176,-4029.69,0.0003726,5]
[383923871,1757172718184,-400.0,0.0003726,8]
[383923872,1757172718193,-400.0,0.0003726,8]
[383923873,1757172718202,-400.0,0.0003726,8]
[383923874,1757172718210,-597.53,0.0003726,8]
[383923875,1757172718218,-477.22,0.0003726,8]
[383923876,1757172718227,-400.0,0.0003726,8]
[383923877,1757172718236,-400.0,0.0003726,8]
[383923878,1757172718245,-400.0,0.0003726,8]
[383923879,1757172718254,-1011.87,0.0003726,8]
[383923880,1757172718265,-400.0,0.0003726,8]
[383923881,1757172718275,-400.0,0.0003726,8]
[383923882,1757172718283,-400.0,0.0003726,8]
[383923883,1757172718290,-400.0,0.0003726,8]
[383923884,1757172718297,-400.0,0.0003726,8]
[383923885,1757172718303,-400.0,0.0003726,8]
[383923886,1757172718311,-400.0,0.0003726,8]
[383923887,1757172718319,-400.0,0.0003726,8]
[383923888,1757172718329,-400.0,0.0003726,8]
[383923889,1757172718339,-400.0,0.0003726,8]
[383923890,1757172718348,-426.24186115,0.0003726,8]
[383923891,1757172718358,-897.77,0.0003726,8]
[383923892,1757172718367,-400.0,0.0003726,8]
[383923893,1757172718377,-400.0,0.0003726,8]
[383923894,1757172718386,-400.0,0.0003726,8]
[383923895,1757172718396,-400.0,0.0003726,8]
[383923896,1757172718405,-400.0,0.0003726,8]
[383923897,1757172718414,-478.1,0.0003726,8]
[383923898,1757172718424,-400.0,0.0003726,8]
[383923899,1757172718433,-400.0,0.0003726,8]
[383923900,1757172718443,-590.89,0.0003726,8]
[383923901,1757172718452,-400.0,0.0003726,8]
[383923902,1757172718461,-400.0,0.0003726,8]
[383923903,1757172718471,-456.67844182,0.0003726,8]
[383923904,1757172718480,-400.0,0.0003726,8]
[383923905,1757172718490,-400.0,0.0003726,8]
[383923906,1757172718499,-400.0,0.0003726,8]
[383923907,1757172718509,-400.0,0.0003726,8]
[383923908,1757172718518,-400.0,0.0003726,8]
[383923909,1757172718528,-400.0,0.0003726,8]
[383923910,1757172718538,-400.0,0.0003726,8]
[383923911,1757172718548,-440.85,0.0003726,8]
[383923912,1757172718557,-440.62,0.0003726,8]
[383923913,1757172718567,-400.0,0.0003726,8]
[383923914,1757172718576,-400.0,0.0003726,8]
[383923915,1757172718586,-400.0,0.0003726,8]
[383923916,1757172718595,-400.0,0.0003726,8]
[383923917,1757172718605,-400.0,0.0003726,8]
[383923918,1757172718614,-400.0,0.0003726,8]
[383923919,1757172718624,-400.0,0.0003726,8]
[383923920,1757172718634,-1063.0,0.0003726,8]
[383923921,1757172718644,-400.0,0.0003726,8]
[383923922,1757172718653,-400.0,0.0003726,8]
[383923923,1757172718663,-400.9,0.0003726,8]
[383923924,1757172718672,-400.0,0.0003726,8]
[383923925,1757172718681,-400.0,0.0003726,8]
[383923926,1757172718691,-675.45,0.0003726,8]
[383923927,1757172718700,-482.04,0.0003726,8]
[383923928,1757172718710,-563.8,0.0003726,8]
[383923929,1757172718719,-400.0,0.0003726,8]
[383923930,1757172718729,-1019.63,0.0003726,8]
[383923931,1757172718739,-436.24,0.0003726,8]
[383923932,1757172718748,-454.0,0.0003726,8]
[383923933,1757172718757,-400.0,0.0003726,8]
[383923934,1757172718767,-400.0,0.0003726,8]
[383923935,1757172718777,-400.0,0.0003726,8]
[383923936,1757172718787,-400.0,0.0003726,8]
[383923937,1757172718797,-400.0,0.0003726,8]
[383923938,1757172718806,-400.0,0.0003726,8]
[383923939,1757172718821,-703.69,0.0003726,8]
[383923940,1757172718831,-400.0,0.0003726,8]
[383923941,1757172718841,-400.0,0.0003726,8]
[383923942,1757172718850,-400.0,0.0003726,8]
[383923943,1757172718860,-400.0,0.0003726,8]
[383923944,1757172718870,-400.0,0.0003726,8]
[383923945,1757172718881,-400.0,0.0003726,8]
[383923946,1757172718891,-400.0,0.0003726,8]
[383923947,1757172718901,-400.0,0.0003726,8]
[383923948,1757172718911,-400.0,0.0003726,8]
[383923949,1757172718921,-517.76968248,0.0003726,8]
[383923950,1757172718930,-407.35,0.0003726,8]
[383923951,1757172718941,-400.0,0.0003726,8]
[383923952,1757172718951,-400.0,0.0003726,8]
[383923953,1757172718960,-400.0,0.0003726,8]
[383923954,1757172718970,-400.0,0.0003726,8]
[383923955,1757172718979,-400.0,0.0003726,8]
[383923956,1757172718989,-472.29860652,0.0003726,8]
[383923957,1757172718999,-400.0,0.0003726,8]
[383923958,1757172719008,-400.0,0.0003726,8]
[383923959,1757172719018,-400.0,0.0003726,8]
[383923960,1757172719028,-400.0,0.0003726,8]
[383923961,1757172719038,-480.23,0.0003726,8]
[383923962,1757172719047,-400.0,0.0003726,8]
[383923963,1757172719057,-400.0,0.0003726,8]
[383923964,1757172719067,-400.0,0.0003726,8]
[383923965,1757172719076,-444.43748225,0.0003726,8]
[383923966,1757172719086,-400.0,0.0003726,8]
[383923967,1757172719096,-400.0,0.0003726,8]
[383923968,1757172719106,-512.18,0.0003726,8]
[383923969,1757172719115,-400.0,0.0003726,8]
[383923970,1757172719125,-419.00038252,0.0003726,8]
[383923971,1757172719134,-400.0,0.0003726,8]
[383923972,1757172719143,-590.96,0.0003726,8]
[383923973,1757172719153,-400.0,0.0003726,8]
[383923974,1757172719163,-400.0,0.0003726,8]
[383923975,1757172719172,-400.0,0.0003726,8]
[383923976,1757172719182,-400.0,0.0003726,8]
[383923977,1757172719192,-400.0,0.0003726,8]
[383923978,1757172719201,-400.0,0.0003726,8]
[383923979,1757172719211,-400.0,0.0003726,8]
[383923980,1757172719220,-400.0,0.0003726,8]
[383923981,1757172719230,-400.0,0.0003726,8]
[383923982,1757172719239,-400.0,0.0003726,8]
[383923983,1757172719251,-400.0,0.0003726,8]
[383923984,1757172719263,-400.0,0.0003726,8]
[383923985,1757172719274,-400.0,0.0003726,8]
[383923986,1757172719283,-400.0,0.0003726,8]
[383923987,1757172719293,-400.0,0.0003726,8]
[383923988,1757172719303,-493.4186875,0.0003726,8]
[383923989,1757172719314,-400.0,0.0003726,8]
[383923990,1757172719325,-400.0,0.0003726,8]
[383923991,1757172719335,-608.37,0.0003726,8]
[383923992,1757172719345,-400.0,0.0003726,8]
[383923993,1757172719356,-434.46,0.0003726,8]
[383923994,1757172719367,-400.0,0.0003726,8]
[383923995,1757172719378,-400.0,0.0003726,8]
[383923996,1757172719388,-598.33,0.0003726,8]
[383923997,1757172719398,-400.0,0.0003726,8]
[383923998,1757172719408,-400.0,0.0003726,8]
[383923999,1757172719418,-424.54465894,0.0003726,8]
[383924000,1757172719427,-509.06,0.0003726,8]
[383924001,1757172719437,-502.57,0.0003726,8]
[383924002,1757172719446,-231.46369175,0.0003726,8]
[383924003,1757172719456,-400.0,0.0003726,8]
[383924004,1757172719466,-400.0,0.0003726,8]
[383924005,1757172719475,-400.0,0.0003726,8]
[383924006,1757172719485,-435.86,0.0003726,8]
[383924007,1757172719495,-404.40368123,0.0003726,8]
[383924008,1757172719505,-1534.12,0.0003726,8]
[383924009,1757172719514,-400.0,0.0003726,8]
[383924010,1757172719524,-400.0,0.0003726,8]
[383924011,1757172719534,-2648.5,0.0003726,8]
[383924012,1757172719543,-400.0,0.0003726,8]
[383924013,1757172719553,-1732.85,0.0003726,8]
[383924014,1757172719563,-400.0,0.0003726,8]
[383924015,1757172719572,-400.0,0.0003726,8]
[383924016,1757172719582,-400.0,0.0003726,8]
[383924017,1757172719592,-495.11,0.0003726,8]
[383924018,1757172719601,-400.0,0.0003726,8]
[383924019,1757172719610,-1089.37,0.0003726,8]
[383924020,1757172719619,-400.0,0.0003726,8]
[383924021,1757172719629,-421.91734803,0.0003726,8]
[383924022,1757172719638,-400.0,0.0003726,8]
[383924023,1757172719647,-400.0,0.0003726,8]
[383924024,1757172719656,-409.91,0.0003726,8]
[383924025,1757172719666,-2279.31,0.0003726,8]
[383924026,1757172719675,-400.0,0.0003726,8]
[383924027,1757172719686,-400.0,0.0003726,8]
[383924028,1757172719695,-1049.01,0.0003726,8]
[383924029,1757172719704,-400.0,0.0003726,8]
[383924030,1757172719712,-400.0,0.0003726,8]
[383924031,1757172719722,-457.92,0.0003726,8]
[383924032,1757172719731,-427.44,0.0003726,8]
[383924033,1757172719740,-400.0,0.0003726,8]
[383924034,1757172719750,-2989.69,0.0003726,8]
[383924035,1757172719760,-303.621186,0.0003726,8]
[383924036,1757172719770,-255.724684,0.0003726,8]
[383924037,1757172719779,-479.57,0.0003726,8]
[383924038,1757172719788,-571.91,0.0003726,8]
[383924039,1757172719798,-2140.52,0.0003726,8]
[383924040,1757172719807,-400.0,0.0003726,8]
[383924041,1757172719817,-400.0,0.0003726,8]
[383924042,1757172719826,-756.95,0.0003726,8]
[383924043,1757172719837,-400.0,0.0003726,8]
[383924044,1757172719847,-400.0,0.0003726,8]
[383924045,1757172719856,-400.0,0.0003726,8]
[383924046,1757172719866,-400.0,0.0003726,8]
[383924047,1757172719875,-501.94577193,0.0003726,2]
[383924048,1757172719885,-673.56,0.0003726,8]
[383924049,1757172719895,-400.0,0.0003726,8]
[383924050,1757172719904,-423.16302,0.0003726,8]
[383924051,1757172719914,-1233.86,0.0003726,8]
[383924052,1757172719926,-400.0,0.0003726,8]
[383924053,1757172719937,-945.88,0.0003726,8]
[383924054,1757172719946,-419.78,0.0003726,8]
[383924055,1757172719956,-604.44,0.0003726,8]
[383924056,1757172719966,-992.17,0.0003726,8]
[383924057,1757172719976,-400.0,0.0003726,8]
[383924058,1757172719986,-400.0,0.0003726,8]
[383924059,1757172719996,-1045.05,0.0003726,8]
[383924060,1757172720005,-187.70049781,0.0003726,8]
[383924061,1757172720015,-429.91,0.0003726,8]
[383924062,1757172720025,-400.0,0.0003726,8]
[383924063,1757172720035,-400.0,0.0003726,8]
[383924064,1757172720045,-400.0,0.0003726,8]
[383924065,1757172720055,-427.54067057,0.0003726,8]
[383924066,1757172720064,-413.34,0.0003726,8]
[383924067,1757172720074,-400.0,0.0003726,8]
[383924068,1757172720084,-420.09,0.0003726,8]
[383924069,1757172720093,-400.0,0.0003726,8]
[383924070,1757172720103,-400.0,0.0003726,8]
[383924071,1757172720113,-400.0,0.0003726,8]
[383924072,1757172720123,-790.23,0.0003726,8]
[383924073,1757172720132,-400.0,0.0003726,8]
[383924074,1757172720142,-2436.64,0.0003726,8]
[383924075,1757172720152,-400.0,0.0003726,8]
[383924076,1757172720162,-1094.56,0.0003726,8]
[383924077,1757172720172,-400.0,0.0003726,8]
[383924078,1757172720181,-730.61,0.0003726,8]
[383924079,1757172720191,-400.0,0.0003726,8]
[383924080,1757172720200,-535.79,0.0003726,8]
[383924081,1757172720211,-400.0,0.0003726,8]
[383924082,1757172720221,-651.47,0.0003726,8]
[383924083,1757172720231,-418.47,0.0003726,8]
[383924084,1757172720245,-2213.66,0.0003726,8]
[383924085,1757172720255,-652.06,0.0003726,8]
[383924086,1757172720268,-458.46,0.0003726,8]